bitfinex-derivatives/quotes_SOLF0:USTF0_20260218
["timestamp","ask_amount","ask_price","bid_price","bid_amount"]
[1771438200897,36.56,82.147,82.051,259.56943725]
[1771438200898,6.55483867,82.136,82.1,3.03329991]
[1771438201196,6.55483867,82.134,82.091,3.04627006]
[1771438202004,6.55483867,82.134,82.09,3.03329991]
[1771438202701,6.55483867,82.132,82.09,3.03329991]
[1771438203511,6.55483867,82.149,82.101,2.52780005]
[1771438203711,6.55483867,82.149,82.11,3.03329991]
[1771438203909,6.55483867,82.149,82.101,2.52780005]
[1771438204707,6.55483867,82.146,82.101,13.49470005]
[1771438206116,6.55483867,82.146,82.11,3.03329991]
[1771438206312,6.55483867,82.146,82.109,10.9659]
[1771438206313,6.55483867,82.146,82.12,3.03329991]
[1771438207919,6.55483867,82.146,82.12,3.03483243]
[1771438211516,6.55483867,82.146,82.109,10.9659]
[1771438211517,6.55483867,82.146,82.11,3.03483243]
[1771438211720,6.55483867,82.146,82.101,10.9669]
[1771438212921,6.55483867,82.139,82.101,10.9669]
[1771438215117,6.43477781,82.15,82.113,10.9653]
[1771438215317,76.66,82.166,82.08,21.9394]
[1771438215318,6.43477781,82.161,82.121,3.11748305]
[1771438216923,6.43477781,82.158,82.123,10.964]
[1771438217818,6.43477781,82.152,82.113,10.9653]
[1771438218621,6.43477781,82.149,82.106,10.9662]
[1771438219825,6.43477781,82.139,82.106,10.9662]
[1771438220022,6.43477781,82.139,82.106,14.08631553]
[1771438220325,6.43477781,82.139,82.114,10.9652]
[1771438221823,6.43477781,82.139,82.11,3.03483243]
[1771438222818,6.43477781,82.147,82.111,10.9656]
[1771438225424,6.43477781,82.144,82.111,10.9656]
[1771438227322,11.25416434,82.193,82.082,61.0]
[1771438227323,6.43477781,82.166,82.121,2.91463707]
[1771438227514,6.43477781,82.166,82.13,3.03483243]
[1771438228217,10.9592,82.16,82.13,3.03483243]
[1771438228415,10.9592,82.16,82.121,2.91463707]
[1771438229726,10.9592,82.16,82.121,13.87893707]
[1771438230124,6.43477781,82.166,82.13,3.03483243]
[1771438230522,6.43477781,82.166,82.134,10.9626]
[1771438235928,6.43477781,82.177,82.132,3.06608717]
[1771438236138,5.0,82.185,82.141,3.06608717]
[1771438236525,5.0,82.185,82.158,10.9593]
[1771438239730,5.0,82.185,82.163,10.9586]
[1771438240436,5.0,82.185,82.156,10.9595]
[1771438243934,6.43477781,82.184,82.148,10.9606]
[1771438244133,6.43477781,82.179,82.148,10.9606]
[1771438244333,6.43477781,82.179,82.133,3.18143971]
[1771438244533,6.43477781,82.178,82.122,3.18232398]
[1771438244734,6.43477781,82.169,82.122,3.18232398]
[1771438244937,5.0,82.185,82.151,3.17676624]
[1771438245731,5.0,82.185,82.157,10.9594]
[1771438252035,5.0,82.185,82.158,3.15877925]
[1771438253945,6.94370102,82.195,82.165,3.10985811]
[1771438254245,6.94370102,82.206,82.165,3.10985811]
[1771438254946,3.03483243,82.2,82.165,3.10985811]
[1771438255145,6.94370102,82.199,82.165,3.10985811]
[1771438255347,6.94370102,82.199,82.16,10.9591]
[1771438255849,6.94370102,82.199,82.163,10.9587]
[1771438261251,6.50653641,82.198,82.163,10.9587]
[1771438262850,6.50653641,82.198,82.168,10.9579]
[1771438263252,6.50653641,82.198,82.15,3.03483243]
[1771438263253,76.64,82.201,82.169,3.09746139]
[1771438264754,76.64,82.201,82.17,10.9578]
[1771438266055,83.14653641,82.201,82.17,10.9578]
[1771438266358,6.50653641,82.189,82.147,3.08935818]
[1771438267750,6.50653641,82.189,82.156,10.9596]
[1771438269253,6.50653641,82.187,82.15,3.12079362]
[1771438270260,76.64,82.195,82.158,10.9593]
[1771438271053,3.03268399,82.21,82.166,3.12253763]
[1771438271260,9.5392204,82.2,82.166,3.12253763]
[1771438271861,9.5392204,82.2,82.168,10.958]
[1771438273163,3.03268399,82.21,82.172,14.11755709]
[1771438273553,6.50653641,82.209,82.172,14.11755709]
[1771438274959,3.03268399,82.21,82.172,3.16005709]
[1771438274960,6.85011915,82.207,82.172,3.16005709]
[1771438275162,6.85011915,82.207,82.165,10.9583]
[1771438276462,6.85011915,82.205,82.171,10.9576]
[1771438278262,76.64,82.206,82.175,3.12289957]
[1771438278458,76.64,82.218,82.175,3.12289957]
[1771438279359,10.9515,82.217,82.183,3.11566442]
[1771438279757,6.85011915,82.214,82.176,10.9569]
[1771438280152,79.67268399,82.22,82.172,3.11566442]
[1771438280153,6.85011915,82.209,82.172,3.11566442]
[1771438281752,10.9528,82.208,82.172,3.11566442]
[1771438282759,10.9518,82.216,82.176,3.1284436]
[1771438283072,76.64,82.22,82.176,3.1284436]
[1771438283073,6.85011915,82.219,82.176,3.1284436]
[1771438284372,6.85011915,82.219,82.187,10.9555]
[1771438286466,9.67242127,82.218,82.187,10.9555]
[1771438286767,6.85011915,82.219,82.187,10.9555]
[1771438286970,9.67243207,82.218,82.187,10.9555]
[1771438287270,6.85011915,82.219,82.187,10.9555]
[1771438287772,6.85011915,82.219,82.186,10.9555]
[1771438288164,6.85011915,82.219,82.176,3.1284436]
[1771438289171,6.85011915,82.219,82.191,10.9549]
[1771438295184,6.85011915,82.215,82.176,3.1284436]
[1771438295383,6.85011915,82.209,82.171,61.0]
[1771438295877,6.85011915,82.189,82.148,3.05495434]
[1771438297884,76.62,82.197,82.152,3.09447587]
[1771438299086,3.03268399,82.19,82.162,10.9588]
[1771438299982,6.85011915,82.196,82.162,10.9588]
[1771438301686,6.85011915,82.196,82.155,10.9597]
[1771438303688,6.85011915,82.196,82.155,14.0807202]
[1771438304689,3.03268399,82.19,82.155,14.0807202]
[1771438305392,3.03268399,82.19,82.157,10.9595]
[1771438305991,3.03268399,82.19,82.157,14.06935617]
[1771438306391,3.03268399,82.19,82.158,3.10899467]
[1771438306692,6.85011915,82.196,82.16,3.10899467]
[1771438307393,10.954,82.199,82.16,3.10899467]
[1771438309295,10.9563,82.182,82.149,3.65982949]
[1771438309590,6.92297783,82.188,82.149,3.65982949]
[1771438310186,10.9556,82.187,82.151,10.9602]
[1771438310383,10.9556,82.187,82.152,3.65986858]
[1771438311495,10.956,82.184,82.152,3.65986858]
[1771438311695,6.92297783,82.186,82.152,3.65986858]
[1771438312391,10.9559,82.184,82.152,3.65986858]
[1771438312594,10.9559,82.184,82.15,10.9604]
[1771438312595,6.92297783,82.183,82.15,10.9604]
[1771438315697,6.92297783,82.183,82.15,14.86883982]
[1771438316894,3.03268399,82.19,82.155,3.90743537]
[1771438317197,6.82955498,82.206,82.155,3.90743537]
[1771438317396,76.64,82.204,82.155,3.90743537]
[1771438317596,6.82955498,82.203,82.155,3.90743537]
[1771438318799,10.9541,82.198,82.16,3.90405494]
[1771438319793,10.9541,82.198,82.162,4.34025481]
[1771438320295,10.9541,82.198,82.161,10.959]
[1771438320296,6.82955498,82.214,82.174,4.33951597]
[1771438320496,76.64,82.219,82.174,4.33951597]
[1771438321190,6.82955498,82.218,82.174,4.33951597]
[1771438321398,9.86223897,82.21,82.174,4.33951597]
[1771438321589,6.82955498,82.209,82.174,4.33951597]
[1771438321790,6.82955498,82.209,82.175,10.957]
[1771438324199,6.82955498,82.209,82.18,10.9564]
[1771438325998,6.82955498,82.209,82.16,3.03268399]
[1771438325999,6.82955498,82.207,82.163,4.37603235]
[1771438327901,6.82955498,82.207,82.176,10.9569]
[1771438329491,6.82955498,82.207,82.168,10.958]
[1771438331204,76.64,82.216,82.172,4.3151044]
[1771438331399,6.82955498,82.219,82.181,4.31443898]
[1771438332702,6.82955498,82.219,82.192,10.9547]
[1771438333300,6.82955498,82.219,82.186,10.9556]
[1771438333709,6.82955498,82.219,82.181,4.31443898]
[1771438334411,6.82955498,82.219,82.184,10.9559]
[1771438335509,6.82955498,82.219,82.189,10.9552]
[1771438336103,10.9502,82.227,82.192,4.25472829]
[1771438336809,6.72329511,82.226,82.192,4.25472829]
[1771438337109,6.72329511,82.223,82.185,10.9557]
[1771438338216,6.72329511,82.223,82.185,4.199055]
[1771438338708,6.72329511,82.223,82.188,10.9553]
[1771438338909,6.72329511,82.223,82.189,4.20471568]
[1771438340911,11.72329511,82.235,82.199,4.19614455]
[1771438341110,6.72329511,82.234,82.201,4.14629323]
[1771438341315,6.72329511,82.234,82.19,3.02990882]
[1771438341515,6.72329511,82.234,82.189,4.14629323]
[1771438341516,6.72329511,82.234,82.192,10.9548]
[1771438342509,5.0,82.235,82.197,10.9541]
[1771438342510,6.72329511,82.231,82.197,10.9541]
[1771438344417,6.72329511,82.226,82.188,10.9553]
[1771438345614,6.72329511,82.226,82.188,15.36298535]
[1771438345815,10.9507,82.224,82.188,15.36298535]
[1771438348118,10.9507,82.224,82.19,10.955]
[1771438348515,6.72329511,82.226,82.191,4.39879084]
[1771438348711,6.72329511,82.25,82.218,10.9513]
[1771438348912,6.72329511,82.25,82.21,3.02990882]
[1771438349520,6.72329511,82.25,82.208,4.39879084]
[1771438349712,6.72329511,82.25,82.218,10.9514]
[1771438350419,6.72329511,82.248,82.209,10.9526]
[1771438356227,10.9476,82.247,82.209,10.9526]
[1771438356432,10.9476,82.247,82.2,3.02990882]
[1771438356433,6.72329511,82.246,82.203,10.9534]
[1771438356623,6.72329511,82.246,82.2,7.09312756]
[1771438356829,6.72329511,82.227,82.181,4.06321874]
[1771438357823,6.72329511,82.221,82.185,10.9557]
[1771438362542,6.72329511,82.221,82.186,10.9555]
[1771438368642,6.72329511,82.221,82.181,4.06321874]
[1771438368950,9.89161459,82.22,82.181,4.06321874]
[1771438369548,6.86170577,82.22,82.181,4.06321874]
[1771438370454,6.86170577,82.22,82.187,10.9554]
[1771438371152,17.80940577,82.246,82.204,3.92150568]
[1771438371349,17.80940577,82.246,82.211,3.92150568]
[1771438371350,6.86170577,82.246,82.211,3.92150568]
[1771438371551,3.02990882,82.24,82.198,3.91864521]
[1771438371750,9.89161459,82.24,82.199,3.91864521]
[1771438371948,6.86170577,82.24,82.199,3.91864521]
[1771438372147,6.86170577,82.24,82.2,3.02990882]
[1771438372350,6.86170577,82.24,82.201,3.91869034]
[1771438373651,6.86170577,82.24,82.208,10.9526]
[1771438375759,6.86170577,82.239,82.201,14.87229034]
[1771438376157,6.86170577,82.239,82.201,3.91869034]
[1771438377659,6.86170577,82.239,82.211,10.9522]
[1771438379460,6.86170577,82.239,82.205,10.9531]
[1771438380668,6.86170577,82.239,82.21,10.9523]
[1771438381555,6.85006803,82.229,82.189,3.98040232]
[1771438381965,6.85006803,82.219,82.178,3.98040232]
[1771438382662,6.85006803,82.219,82.179,10.9565]
[1771438385070,3.02990882,82.21,82.17,10.9577]
[1771438385261,6.85006803,82.209,82.17,10.9577]
[1771438387469,6.85006803,82.199,82.155,3.98652241]
[1771438387975,6.85006803,82.197,82.156,10.9595]
[1771438388378,3.02990882,82.19,82.155,3.98652241]
[1771438388579,6.85006803,82.189,82.141,3.98426367]
[1771438388873,6.85006803,82.179,82.141,3.98426367]
[1771438389175,6.85006803,82.179,82.13,3.02990882]
[1771438389176,6.85006803,82.179,82.131,3.99359917]
[1771438389364,6.85006803,82.179,82.13,3.02990882]
[1771438389365,6.85006803,82.177,82.132,3.99136077]
[1771438389570,6.85006803,82.169,82.12,3.99136077]
[1771438389966,6.85006803,82.169,82.126,3.99137632]
[1771438390178,3.02990882,82.18,82.131,3.99137632]
[1771438391177,6.85006803,82.179,82.131,3.99137632]
[1771438391374,9.87997685,82.17,82.134,4.01955467]
[1771438391581,6.85006803,82.169,82.134,4.01955467]
[1771438392078,3.03443244,82.17,82.134,4.01955467]
[1771438392466,3.03443244,82.18,82.134,4.01955467]
[1771438392870,6.85006803,82.181,82.144,4.01740158]
[1771438393274,6.85006803,82.169,82.132,3.96553381]
[1771438394172,6.85006803,82.159,82.119,3.96342819]
[1771438394668,6.85006803,82.159,82.125,9.07548477]
[1771438394869,6.85006803,82.159,82.126,3.96132952]
[1771438395071,3.03443244,82.17,82.126,3.96132952]
[1771438395875,3.03443244,82.17,82.128,3.97662419]
[1771438396076,3.03443244,82.19,82.141,3.97663969]
[1771438397780,10.9554,82.189,82.144,3.94857721]
[1771438398380,10.9554,82.189,82.145,10.961]
[1771438398582,10.9554,82.189,82.146,3.94651884]
[1771438398779,3.03443244,82.2,82.151,3.94651884]
[1771438399376,10.9537,82.201,82.151,3.94651884]
[1771438399681,10.9537,82.201,82.155,3.97472466]
[1771438399877,17.87835863,82.201,82.155,3.97472466]
[1771438400279,6.92465863,82.2,82.155,3.97472466]
[1771438400478,6.92465863,82.2,82.157,3.97270352]
[1771438400783,6.92465863,82.2,82.126,61.0]
[1771438400784,6.92465863,82.2,82.161,3.97270352]
[1771438401984,6.92465863,82.199,82.161,3.97270352]
[1771438402187,6.92465863,82.198,82.152,10.9602]
[1771438402881,6.92465863,82.198,82.152,14.95407835]
[1771438403884,6.92465863,82.195,82.152,14.95407835]
[1771438404082,6.92465863,82.195,82.158,10.9593]
[1771438408884,6.92465863,82.195,82.158,14.86394103]
[1771438409086,3.03443244,82.2,82.162,3.90464103]
[1771438409285,10.9534,82.204,82.162,3.90464103]
[1771438409477,17.87805863,82.204,82.162,3.90464103]
[1771438409677,3.03443244,82.22,82.171,3.90320532]
[1771438409875,6.92465863,82.228,82.171,3.90320532]
[1771438410782,6.92465863,82.228,82.18,3.03443244]
[1771438410987,6.92465863,82.228,82.181,3.90137909]
[1771438411384,6.92465863,82.228,82.19,3.03443244]
[1771438411690,6.92465863,82.249,82.191,3.90786771]
[1771438412081,6.92465863,82.249,82.169,76.64]
[1771438412082,6.92465863,82.247,82.202,3.90788611]
[1771438412289,6.92465863,82.247,82.211,3.90788611]
[1771438413092,6.92465863,82.247,82.214,10.9518]
[1771438419597,6.92465863,82.247,82.2,3.03443244]
[1771438419988,6.92465863,82.247,82.201,10.9536]
[1771438420388,6.92465863,82.229,82.191,3.97707368]
[1771438422389,6.92465863,82.227,82.184,10.9558]
[1771438422696,6.92465863,82.227,82.184,14.98827717]
[1771438424001,6.92465863,82.227,82.19,3.03443244]
[1771438424292,6.92465863,82.227,82.191,4.0821731]
[1771438424691,6.92465863,82.223,82.182,10.9561]
[1771438425199,6.92465863,82.223,82.183,4.07799418]
[1771438426799,6.92465863,82.223,82.186,10.9556]
[1771438429194,6.77739428,82.217,82.174,10.9571]
[1771438429401,6.77739428,82.217,82.174,15.01512676]
[1771438429794,17.72909428,82.216,82.176,15.01492676]
[1771438430190,17.72909428,82.216,82.177,4.0580224]
[1771438431398,6.77739428,82.215,82.177,4.0580224]
[1771438432994,6.77739428,82.213,82.177,4.0580224]
[1771438440502,6.77739428,82.213,82.179,10.9566]
[1771438441907,10.9522,82.212,82.179,10.9566]
[1771438442604,6.38872169,82.209,82.165,4.29668568]
[1771438443807,6.38872169,82.201,82.165,15.25508568]
[1771438445204,6.38872169,82.198,82.165,15.25508568]
[1771438445513,6.38872169,82.198,82.165,10.9584]
[1771438446101,10.9532,82.205,82.171,4.31424139]
[1771438448810,17.34192169,82.205,82.171,4.31424139]
[1771438449006,6.38872169,82.201,82.161,10.9589]
[1771438449211,6.38872169,82.201,82.144,61.0]
[1771438449212,6.38872169,82.199,82.151,4.24799796]
[1771438449807,6.38872169,82.189,82.152,10.9602]
[1771438450617,6.38872169,82.189,82.157,15.20554214]
[1771438451714,6.38872169,82.189,82.157,4.24614214]
[1771438461022,10.9543,82.196,82.16,4.09390769]
[1771438461222,6.7661766,82.195,82.16,4.09390769]
[1771438467321,6.7661766,82.195,82.15,3.03254405]
[1771438467322,6.7661766,82.219,82.172,4.08762346]
[1771438467724,6.7661766,82.216,82.174,10.9572]
[1771438468316,6.7661766,82.213,82.165,10.9584]
[1771438468521,6.7661766,82.209,82.165,10.9584]
[1771438469740,6.7661766,82.207,82.165,10.9584]
[1771438470938,6.7661766,82.207,82.173,4.03812261]
[1771438471135,10.9519,82.214,82.173,4.03812261]
[1771438471437,76.64,82.237,82.173,4.03812261]
[1771438471438,6.7661766,82.219,82.173,4.03812261]
[1771438471634,6.7661766,82.219,82.18,3.03254405]
[1771438472536,6.7661766,82.219,82.181,4.04499695]
[1771438472741,6.7661766,82.219,82.189,10.9551]
[1771438475734,6.7661766,82.219,82.181,4.04499695]
[1771438476541,6.7661766,82.219,82.184,10.9559]
[1771438480246,6.7661766,82.219,82.189,10.9551]
[1771438482748,6.7661766,82.219,82.185,4.03726994]
[1771438483648,6.7661766,82.219,82.187,10.9555]
[1771438490750,6.7661766,82.219,82.192,10.9547]
[1771438492246,6.45730388,82.229,82.193,4.10669724]
[1771438492451,6.45730388,82.229,82.198,15.05988629]
[1771438492851,6.45730388,82.229,82.198,4.10598629]
[1771438496253,6.45730388,82.239,82.201,4.29492327]
[1771438496754,6.45730388,82.239,82.208,10.9526]
[1771438496949,6.45730388,82.239,82.191,4.29422874]
[1771438498651,3.03254405,82.24,82.197,10.9541]
[1771438498652,6.3544241,82.237,82.197,10.9541]
[1771438499356,6.3544241,82.235,82.197,10.9541]
[1771438500750,6.3544241,82.229,82.191,4.29422874]
[1771438501657,6.3544241,82.229,82.192,10.9548]
[1771438503154,6.3544241,82.229,82.198,10.954]
[1771438503952,6.3544241,82.229,82.198,15.23056829]
[1771438504156,6.3544241,82.253,82.201,4.27655585]
[1771438504350,6.3544241,82.253,82.211,4.27655585]
[1771438504549,6.3544241,82.253,82.221,4.27594519]
[1771438504749,6.3544241,82.269,82.221,4.27594519]
[1771438504954,6.3544241,82.257,82.221,4.27594519]
[1771438505754,10.9464,82.256,82.221,4.27594519]
[1771438505955,6.3544241,82.229,82.189,4.27439986]
[1771438506753,6.3544241,82.229,82.165,76.6]
[1771438506754,6.3544241,82.229,82.191,4.27381316]
[1771438507064,6.3544241,82.242,82.201,4.27381316]
[1771438508763,6.3544241,82.242,82.205,4.26416604]
[1771438509959,6.3544241,82.245,82.207,4.24766635]
[1771438510265,6.3544241,82.259,82.221,4.24765334]
[1771438510466,10.9466,82.255,82.221,4.24765334]
[1771438510654,6.3544241,82.254,82.21,3.03254405]
[1771438510856,6.3544241,82.249,82.197,4.24714446]
[1771438511060,6.3544241,82.245,82.201,15.20064446]
[1771438511260,6.3544241,82.245,82.202,4.20378544]
[1771438512068,10.9481,82.243,82.203,15.15651084]
[1771438512260,6.3544241,82.242,82.203,15.15651084]
[1771438515766,6.25531918,82.232,82.195,10.9544]
[1771438515973,6.25531918,82.232,82.195,15.1522184]
[1771438516374,6.25531918,82.232,82.19,3.02879563]
[1771438516375,6.25531918,82.232,82.196,4.19780523]
[1771438516673,17.20491918,82.232,82.2,4.19719615]
[1771438517166,17.20491918,82.232,82.177,61.0]
[1771438517167,10.9496,82.232,82.192,10.9547]
[1771438517366,6.25531918,82.229,82.18,3.02879563]
[1771438517572,6.25531918,82.229,82.181,4.20236241]
[1771438517766,6.25531918,82.243,82.201,4.20236241]
[1771438517971,9.6087973,82.242,82.201,4.20236241]
[1771438518176,9.6087973,82.241,82.201,4.20236241]
[1771438518379,10.9488,82.238,82.201,4.20236241]
[1771438519169,6.25531918,82.237,82.201,4.20236241]
[1771438520572,6.25531918,82.237,82.195,10.9543]
[1771438523077,10.9475,82.248,82.21,3.02879563]
[1771438523271,6.25531918,82.269,82.211,4.10181734]
[1771438523475,6.25531918,82.267,82.211,4.10181734]
[1771438523686,6.25531918,82.265,82.211,4.10181734]
[1771438523977,6.25531918,82.263,82.211,4.10181734]
[1771438524175,6.25531918,82.261,82.211,4.10181734]
[1771438524377,15.87053315,82.26,82.211,4.10181734]
[1771438524582,9.61521397,82.259,82.211,4.10181734]
[1771438524882,10.9462,82.257,82.215,4.10061347]
[1771438525583,6.25531918,82.254,82.215,4.10061347]
[1771438527581,6.25531918,82.254,82.219,4.12815975]
[1771438529687,10.9468,82.253,82.219,4.12815975]
[1771438535490,6.25531918,82.252,82.219,4.12815975]
[1771438535880,6.25531918,82.252,82.214,10.9519]
[1771438536286,6.25531918,82.252,82.214,15.14466271]
[1771438538794,6.25531918,82.252,82.215,4.16343911]
[1771438546489,6.25531918,82.252,82.217,4.2698671]
[1771438548408,10.9471,82.25,82.217,4.2698671]
[1771438549392,6.88058821,82.249,82.217,4.2698671]
[1771438549598,6.88058821,82.247,82.205,4.25646348]
[1771438549794,6.88058821,82.247,82.211,4.25646348]
[1771438550298,6.88058821,82.247,82.22,3.02879563]
[1771438550495,6.88058821,82.247,82.218,4.25645541]
[1771438552100,6.88058821,82.266,82.221,4.26627257]
[1771438553700,6.88058821,82.266,82.175,36.52]
[1771438553701,6.88058821,82.229,82.183,4.24609029]
[1771438554700,6.88058821,82.229,82.19,4.24571098]
[1771438554895,6.88058821,82.229,82.191,4.24571098]
[1771438555702,6.88058821,82.229,82.194,4.24835066]
[1771438556801,6.88058821,82.226,82.185,10.9557]
[1771438557996,10.9507,82.224,82.185,10.9557]
[1771438558203,6.66051683,82.223,82.182,4.24808105]
[1771438558997,6.66051683,82.223,82.178,10.9566]
[1771438559204,6.66051683,82.209,82.158,4.1886594]
[1771438559704,6.66051683,82.209,82.16,3.02879563]
[1771438560294,76.6,82.224,82.159,10.9592]
[1771438560295,6.66051683,82.199,82.159,10.9592]
[1771438560603,76.6,82.224,82.146,4.18813982]
[1771438560604,6.66051683,82.189,82.146,4.18813982]
[1771438561401,6.66051683,82.189,82.151,10.9603]
[1771438562403,9.68931246,82.2,82.158,4.7154719]
[1771438562802,6.66051683,82.199,82.158,4.7154719]
[1771438563508,6.66051683,82.198,82.158,4.7154719]
[1771438564707,17.61471683,82.197,82.158,4.7154719]
[1771438566014,6.66051683,82.196,82.158,4.7154719]
[1771438568207,17.61311683,82.209,82.164,4.59843613]
[1771438568418,76.62,82.218,82.171,4.59843613]
[1771438568718,6.66051683,82.218,82.18,4.59816248]
[1771438568919,6.66051683,82.218,82.181,4.59816248]
[1771438569809,6.66051683,82.218,82.183,10.956]
[1771438570409,6.66051683,82.218,82.176,10.9569]
[1771438571716,6.66051683,82.216,82.182,10.9561]
[1771438571916,6.66051683,82.216,82.183,4.63553234]
[1771438573112,6.66051683,82.215,82.17,15.59296554]
[1771438573519,3.02879563,82.21,82.17,15.59296554]
[1771438573825,6.66051683,82.209,82.17,15.59296554]
[1771438575825,6.26081376,82.206,82.17,15.59296554]
[1771438576023,3.03146929,82.2,82.163,10.9586]
[1771438576225,3.03146929,82.2,82.137,76.62]
[1771438576226,6.26081376,82.189,82.138,4.65861132]
[1771438576528,6.26081376,82.189,82.088,37.87910139]
[1771438576529,6.26081376,82.159,82.1,3.03146929]
[1771438576824,76.62,82.161,82.126,4.65832363]
[1771438577026,6.26081376,82.139,82.087,6.3843739]
[1771438577217,170.387,82.203,82.091,6.3843739]
[1771438577218,6.26081376,82.149,82.091,6.3843739]
[1771438577420,6.26081376,82.147,82.091,6.3843739]
[1771438577724,6.26081376,82.129,82.081,6.3843739]
[1771438578027,6.26081376,82.129,82.09,3.03146929]
[1771438578220,6.26081376,82.129,82.09,6.3843739]
[1771438578524,6.26081376,82.129,82.09,9.41584319]
[1771438580926,3.03146929,82.14,82.091,6.3843739]
[1771438581122,6.26081376,82.141,82.091,6.3843739]
[1771438581323,6.26081376,82.149,82.101,6.3843739]
[1771438581631,6.26081376,82.139,82.09,3.03146929]
[1771438581817,6.26081376,82.139,82.091,6.3843739]
[1771438582428,9.29228305,82.13,82.091,6.3843739]
[1771438583129,6.26081376,82.13,82.091,6.3843739]
[1771438583432,6.26081376,82.139,82.091,6.3843739]
[1771438584231,6.26081376,82.129,82.084,10.9692]
[1771438584724,6.26081376,82.129,82.084,17.3535739]
[1771438584925,6.26081376,82.129,82.085,6.3843739]
[1771438586233,6.26081376,82.129,82.088,10.9687]
[1771438586835,21.9116,82.185,82.075,5.11727079]
[1771438586836,6.26081376,82.146,82.086,6.3843739]
[1771438587023,6.26081376,82.129,82.086,6.3843739]
[1771438588429,6.26081376,82.119,82.08,10.9698]
[1771438588630,6.26081376,82.119,82.075,5.11727079]
[1771438589739,6.26081376,82.119,82.076,10.9702]
[1771438589936,3.03146929,82.13,82.077,6.3843739]
[1771438590239,6.26081376,82.132,82.081,6.3843739]
[1771438590443,6.26081376,82.132,82.075,5.11727079]
[1771438590444,6.26081376,82.132,82.096,10.9676]
[1771438590640,6.26081376,82.132,82.096,17.3519739]
[1771438591042,6.26081376,82.132,82.087,10.9688]
[1771438591244,6.26081376,82.129,82.087,10.9688]
[1771438591538,6.26081376,82.119,82.087,10.9688]
[1771438592943,3.03146929,82.13,82.092,10.9682]
[1771438593543,9.29228305,82.13,82.092,10.9682]
[1771438594439,6.26081376,82.129,82.092,10.9682]
[1771438594641,6.26081376,82.129,82.088,6.3843739]
[1771438596644,6.26081376,82.129,82.089,10.9686]
[1771438598546,6.26081376,82.127,82.089,10.9686]
[1771438598945,6.26081376,82.109,82.075,5.11727079]
[1771438599142,6.26081376,82.089,82.075,7.079e-05]
[1771438601142,6.26081376,82.089,82.055,10.973]
[1771438601750,3.03146929,82.08,82.048,10.974]
[1771438602650,3.03146929,82.08,82.041,10.975]
[1771438602945,3.03146929,82.07,82.029,6.3843739]
[1771438603450,6.26081376,82.078,82.029,6.3843739]
[1771438603853,6.26081376,82.069,82.016,413.21580058]
[1771438604644,3.03146929,82.07,82.027,6.3843739]
[1771438605754,10.9713,82.069,82.027,6.3843739]
[1771438606352,17.77557533,82.069,82.027,6.3843739]
[1771438606647,3.03146929,82.08,82.03,3.03146929]
[1771438606844,76.64,82.079,82.031,6.48547793]
[1771438607343,83.44427533,82.079,82.031,6.48547793]
[1771438607945,6.80427533,82.069,82.025,16.09739012]
[1771438608352,3.03146929,82.06,82.025,5.12039012]
[1771438608754,10.9716,82.067,82.027,10.9768]
[1771438608956,76.64,82.066,82.028,6.48547793]
[1771438609153,6.80427533,82.069,82.028,6.48547793]
[1771438609358,76.64,82.079,82.031,6.48547793]
[1771438609653,348.4841,82.157,82.031,6.48547793]
[1771438609857,6.80427533,82.109,82.06,3.03146929]
[1771438610151,3.03146929,82.1,82.064,10.9718]
[1771438610352,3.03146929,82.08,82.039,6.48547793]
[1771438611054,36.52,82.155,82.051,6.48547793]
[1771438611055,76.64,82.095,82.051,6.48547793]
[1771438611252,76.64,82.098,82.051,6.48547793]
[1771438611445,76.64,82.098,82.027,76.64]
[1771438611446,76.64,82.105,82.061,6.48547793]
[1771438611850,0.07681354,82.083,82.061,6.48547793]
[1771438612646,0.07681354,82.083,82.066,10.9715]
[1771438612852,9.83574462,82.1,82.061,6.48547793]
[1771438613055,6.80427533,82.099,82.061,6.48547793]
[1771438613651,6.80427533,82.099,82.05,3.03146929]
[1771438613851,6.80427533,82.099,82.05,9.51694722]
[1771438614657,6.80427533,82.099,82.056,10.9729]
[1771438615252,6.80427533,82.095,82.056,10.9729]
[1771438618358,6.80427533,82.095,82.05,6.48547793]
[1771438618359,6.80427533,82.095,82.062,10.9721]
[1771438619154,76.64,82.099,82.062,10.9721]
[1771438620052,76.64,82.099,82.062,17.49989501]
[1771438620455,76.64,82.099,82.07,10.971]
[1771438620762,76.64,82.119,82.071,6.52779501]
[1771438621168,6.69578882,82.116,82.076,10.9702]
[1771438621459,6.69578882,82.109,82.058,6.52779501]
[1771438621651,6.69578882,82.105,82.068,10.9714]
[1771438622760,76.64,82.108,82.068,10.9714]
[1771438622761,6.69578882,82.103,82.068,10.9714]